fUSD/lending_fUSD_20250219
["ID","MTS","AMOUNT","RATE_DAILY","PERIOD"]
[353587693,1739941844337,-841.91,0.00016438,2]
[353587694,1739941844347,-500.0,0.00016438,2]
[353587695,1739941844357,-500.0,0.00016438,2]
[353587696,1739941844366,-500.0,0.00016438,2]
[353587697,1739941844377,-500.0,0.00016438,2]
[353587698,1739941844386,-150.0,0.00016438,2]
[353587699,1739941844397,-506.65554509,0.00016438,2]
[353587700,1739941844407,-500.0,0.00016438,2]
[353587701,1739941844416,-707.9,0.00016438,2]
[353587702,1739941844425,-500.0,0.00016438,2]
[353587703,1739941844435,-653.51,0.00016438,2]
[353587704,1739941844445,-500.0,0.00016438,2]
[353587705,1739941844454,-500.0,0.00016438,2]
[353587706,1739941844463,-599.89558899,0.00016438,2]
[353587707,1739941844473,-500.0,0.00016438,2]
[353587708,1739941844482,-500.0,0.00016438,2]
[353587709,1739941844492,-500.0,0.00016438,2]
[353587710,1739941844501,-500.0,0.00016438,2]
[353587711,1739941844510,-774.32,0.00016438,2]
[353587712,1739941844519,-500.0,0.00016438,2]
[353587713,1739941844529,-500.0,0.00016438,2]
[353587714,1739941844539,-500.0,0.00016438,2]
[353587715,1739941844549,-500.0,0.00016438,2]
[353587716,1739941844556,-500.0,0.00016438,2]
[353587717,1739941844566,-560.23,0.00016438,2]
[353587718,1739941844576,-500.31,0.00016438,2]
[353587719,1739941844585,-500.0,0.00016438,2]
[353587720,1739941844595,-686.18,0.00016438,2]
[353587721,1739941844605,-151.0,0.00016438,2]
[353587722,1739941844614,-500.0,0.00016438,2]
[353587723,1739941844624,-500.0,0.00016438,2]
[353587724,1739941844633,-500.0,0.00016438,2]
[353587725,1739941844642,-500.0,0.00016438,2]
[353587726,1739941844651,-626.01,0.00016438,2]
[353587727,1739941844661,-500.0,0.00016438,2]
[353587728,1739941844670,-500.0,0.00016438,2]
[353587729,1739941844679,-500.0,0.00016438,2]
[353587730,1739941844689,-903.93,0.00016438,2]
[353587731,1739941844698,-500.0,0.00016438,2]
[353587732,1739941844708,-500.0,0.00016438,2]
[353587733,1739941844718,-500.0,0.00016438,2]
[353587734,1739941844728,-500.0,0.00016438,2]
[353587735,1739941844737,-500.0,0.00016438,2]
[353587736,1739941844748,-539.77,0.00016438,2]
[353587737,1739941844758,-684.49,0.00016438,2]
[353587738,1739941844768,-500.0,0.00016438,2]
[353587739,1739941844777,-500.0,0.00016438,2]
[353587740,1739941844787,-503.75999705,0.00016438,2]
[353587741,1739941844796,-500.0,0.00016438,2]
[353587742,1739941844806,-500.0,0.00016438,2]
[353587743,1739941844818,-500.0,0.00016438,2]
[353587744,1739941844827,-500.0,0.00016438,2]
[353587745,1739941844836,-500.0,0.00016438,2]
[353587746,1739941844849,-503.2347226,0.00016438,2]
[353587747,1739941844860,-500.0,0.00016438,2]
[353587748,1739941844869,-664.82,0.00016438,2]
[353587749,1739941844879,-577.34,0.00016438,2]
[353587750,1739941844890,-500.0,0.00016438,2]
[353587751,1739941844899,-501.83023923,0.00016438,2]
[353587752,1739941844909,-500.0,0.00016438,2]
[353587753,1739941844918,-901.79,0.00016438,2]
[353587754,1739941844928,-500.0,0.00016438,2]
[353587755,1739941844938,-500.0,0.00016438,2]
[353587756,1739941844948,-591.3,0.00016438,2]
[353587757,1739941844958,-500.0,0.00016438,2]
[353587758,1739941844967,-500.0,0.00016438,2]
[353587759,1739941844977,-500.0,0.00016438,2]
[353587760,1739941844987,-500.0,0.00016438,2]
[353587761,1739941844996,-500.0,0.00016438,2]
[353587762,1739941845005,-500.0,0.00016438,2]
[353587763,1739941845015,-500.0,0.00016438,2]
[353587764,1739941845025,-500.0,0.00016438,2]
[353587765,1739941845034,-522.61,0.00016438,2]
[353587766,1739941845045,-693.46,0.00016438,2]
[353587767,1739941845059,-505.24188806,0.00016438,2]
[353587768,1739941845069,-500.0,0.00016438,2]
[353587769,1739941845079,-500.0,0.00016438,2]
[353587770,1739941845088,-500.0,0.00016438,2]
[353587771,1739941845100,-500.0,0.00016438,2]
[353587772,1739941845110,-719.71,0.00016438,2]
[353587773,1739941845120,-500.0,0.00016438,2]
[353587774,1739941845130,-500.0,0.00016438,2]
[353587775,1739941845140,-632.82,0.00016438,2]
[353587776,1739941845151,-500.0,0.00016438,2]
[353587777,1739941845162,-500.0,0.00016438,2]
[353587778,1739941845172,-500.0,0.00016438,2]
[353587779,1739941845183,-500.0,0.00016438,2]
[353587780,1739941845195,-500.0,0.00016438,2]
[353587781,1739941845205,-500.0,0.00016438,2]
[353587782,1739941845215,-572.98958983,0.00016438,2]
[353587783,1739941845226,-530.54,0.00016438,2]
[353587784,1739941845236,-518.6579664,0.00016438,2]
[353587785,1739941845246,-500.0,0.00016438,2]
[353587786,1739941845255,-811.5,0.00016438,2]
[353587787,1739941845264,-500.0,0.00016438,2]
[353587788,1739941845274,-566.6,0.00016438,2]
[353587789,1739941845283,-500.0,0.00016438,2]
[353587790,1739941845293,-500.0,0.00016438,2]
[353587791,1739941845302,-500.0,0.00016438,2]
[353587792,1739941845312,-500.0,0.00016438,2]
[353587793,1739941845321,-500.0,0.00016438,2]
[353587794,1739941845331,-500.0,0.00016438,2]
[353587795,1739941845340,-500.0,0.00016438,2]
[353587796,1739941845350,-500.0,0.00016438,2]
[353587797,1739941845360,-500.0,0.00016438,2]
[353587798,1739941845369,-500.0,0.00016438,2]
[353587799,1739941845378,-500.0,0.00016438,2]
[353587800,1739941845387,-500.0,0.00016438,2]
[353587801,1739941845397,-500.0,0.00016438,2]
[353587802,1739941845406,-691.84,0.00016438,2]
[353587803,1739941845415,-500.0,0.00016438,2]
[353587804,1739941845425,-395.33990035,0.00016438,2]
[353587805,1739941845435,-500.0,0.00016438,2]
[353587806,1739941845446,-301.09654935,0.00016438,2]
[353587807,1739941845456,-526.08089854,0.00016438,2]
[353587808,1739941845465,-500.0,0.00016438,2]
[353587809,1739941845474,-714.37,0.00016438,2]
[353587810,1739941845485,-500.0,0.00016438,2]
[353587811,1739941845495,-500.0,0.00016438,2]
[353587812,1739941845507,-521.67377782,0.00016438,2]
[353587813,1739941845517,-500.0,0.00016438,2]
[353587814,1739941845527,-500.0,0.00016438,2]
[353587815,1739941845537,-500.0,0.00016438,2]
[353587816,1739941845547,-651.08,0.00016438,2]
[353587817,1739941845560,-500.0,0.00016438,2]
[353587818,1739941845579,-500.0,0.00016438,2]
[353587819,1739941845590,-500.0,0.00016438,2]
[353587820,1739941845601,-500.0,0.00016438,2]
[353587821,1739941845615,-500.0,0.00016438,2]
[353587822,1739941845635,-500.0,0.00016438,2]
[353587823,1739941845648,-541.01,0.00016438,2]
[353587824,1739941845657,-500.0,0.00016438,2]
[353587825,1739941845666,-500.0,0.00016438,2]
[353587826,1739941845675,-500.0,0.00016438,2]
[353587827,1739941845685,-500.0,0.00016438,2]
[353587828,1739941845694,-500.0,0.00016438,2]
[353587829,1739941845703,-500.0,0.00016438,2]
[353587830,1739941845713,-500.0,0.00016438,2]
[353587831,1739941845723,-500.0,0.00016438,2]
[353587832,1739941845732,-500.0,0.00016438,2]
[353587833,1739941845741,-870.79,0.00016438,2]
[353587834,1739941845751,-500.0,0.00016438,2]
[353587835,1739941845760,-500.0,0.00016438,2]
[353587836,1739941845770,-500.0,0.00016438,2]
[353587837,1739941845780,-500.0,0.00016438,2]
[353587838,1739941845789,-644.54305717,0.00016438,2]
[353587839,1739941845799,-500.0,0.00016438,2]
[353587840,1739941845808,-500.0,0.00016438,2]
[353587841,1739941845821,-500.0,0.00016438,2]
[353587842,1739941845830,-380.41344002,0.00016438,2]
[353587843,1739941845867,-1394.79655998,0.00016438,2]
[353587844,1739941845877,-380.92226794,0.00016438,2]
[353587845,1739941845887,-500.0,0.00016438,2]
[353587846,1739941845899,-500.0,0.00016438,2]
[353587847,1739941845909,-501.88237833,0.00016438,2]
[353587848,1739941845919,-500.0,0.00016438,2]
[353587849,1739941845928,-500.0,0.00016438,2]
[353587850,1739941845939,-500.0,0.00016438,2]
[353587851,1739941845949,-500.0,0.00016438,2]
[353587852,1739941845959,-500.0,0.00016438,2]
[353587853,1739941845968,-500.0,0.00016438,2]
[353587854,1739941845978,-899.88,0.00016438,2]
[353587855,1739941845988,-500.0,0.00016438,2]
[353587857,1739941845997,-500.0,0.00016438,2]
[353587859,1739941846007,-500.0,0.00016438,2]
[353587860,1739941846017,-500.0,0.00016438,2]
[353587861,1739941846027,-580.48991889,0.00016438,2]
[353587862,1739941846037,-924.79,0.00016438,2]
[353587863,1739941846047,-443.80526103,0.00016438,2]
[353587864,1739941846057,-500.0,0.00016438,2]
[353587865,1739941846067,-153.79678667,0.00016438,2]
[353587866,1739941846080,-346.20321333,0.00016438,2]
[353587867,1739941846091,-500.0,0.00016438,2]
[353587868,1739941846101,-167.03107999,0.00016438,2]
[353587869,1739941846113,-332.96892001,0.00016438,2]
[353587870,1739941846123,-89.09108003,0.00016438,2]
[353587871,1739941846166,-410.90891997,0.00016438,2]
[353587872,1739941846176,-500.0,0.00016438,2]
[353587873,1739941846186,-500.0,0.00016438,2]
[353587874,1739941846196,-500.0,0.00016438,2]
[353587875,1739941846206,-500.0,0.00016438,2]
[353587876,1739941846215,-102.18998424,0.00016438,2]
[353587878,1739941846233,-397.81001576,0.00016438,2]
[353587880,1739941846243,-813.5,0.00016438,2]
[353587882,1739941846253,-500.0,0.00016438,2]
[353587884,1739941846263,-522.21977313,0.00016438,2]
[353587885,1739941846273,-500.0,0.00016438,2]
[353587887,1739941846283,-1024.54335677,0.00016438,2]
[353587889,1739941847143,-24.65664323,0.00016438,2]
[353587890,1739941847154,-500.0,0.00016438,2]
[353587891,1739941847163,-500.0,0.00016438,2]
[353587892,1739941847173,-500.0,0.00016438,2]
[353587893,1739941847183,-326.68652838,0.00016438,2]
[353587894,1739941847195,-652.64999992,0.00016438,2]
[353587895,1739941847206,-214.0234717,0.00016438,2]
[353587896,1739941847216,-173.87397294,0.00016438,2]
[353587897,1739941847712,-313.31365467,0.00016438,2]
[353587898,1739941847725,-12.81237239,0.00016438,2]
[353587899,1739941847735,-469.15269777,0.00016438,2]
[353587900,1739941847750,-119.73844444,0.00016438,2]
[353587901,1739941847761,-217.04035772,0.00016438,2]
[353587902,1739941847777,-282.95964228,0.00016438,2]
[353587903,1739941847788,-500.0,0.00016438,2]
[353587904,1739941847797,-16.27281932,0.00016438,2]
[353587905,1739941998729,164.23,8.767e-05,2]
[353587909,1739942720531,4756.68312013,9e-05,2]
[353587910,1739942729685,2192.32216118,0.0001865,120]
[353587932,1739942890646,33278.11627919,8.9e-05,2]
[353587949,1739943031595,-150.0,9.999e-05,2]
[353587950,1739943031605,-876.39824093,0.0001,2]
[353587951,1739943031617,-91227.14076968,0.0001,2]
[353587952,1739943031710,-288.31657588,0.0001,2]
[353587953,1739943031722,-7068.35,0.0001,2]
[353587954,1739943031771,-963.75,0.0001,2]
[353587955,1739943031833,-1027.61307614,0.0001,2]
[353587990,1739943037584,-784.500026,0.0001,2]
[353587991,1739943037596,-1079.34910173,0.0001,2]
[353587992,1739943037643,-155713.5671892,0.0001,2]
[353587993,1739943037707,-15000.0,0.0001,2]
[353587994,1739943037719,-42692.33627575,0.0001,2]
[353587995,1739943037731,-14346.66954172,0.0001,2]
[353587996,1739943037743,-2717.20595759,0.0001,2]
[353588037,1739943039601,-2100.6894414,0.0001,2]
[353588038,1739943039905,-1052.0806342,0.0001,2]
[353588039,1739943039916,-4019.19706233,0.0001,2]
[353588040,1739943039955,-435.00996,0.0001,2]
[353588041,1739943040016,-2886.68150357,0.0001,2]
[353588303,1739943042826,-129524.05513443,0.0001,2]
[353588305,1739943042836,-197635.70135469,0.0001,2]
[353588307,1739943042845,-10631.13680518,0.0001,2]
[353588309,1739943042855,-316.1980006,0.0001,2]
[353588311,1739943042864,-153.61172358,0.000109,2]
[353588313,1739943042873,-13163.64403664,0.00011099,2]
[353588315,1739943042883,-9177.61388542,0.00011099,2]
[353588317,1739943042894,-9177.61388539,0.00011099,2]
[353588319,1739943042904,-9177.61388539,0.00011546,2]
[353588321,1739943042914,-268.09203249,0.00012039,2]
[353588323,1739943042923,-9177.61388539,0.00012369,2]
[353588325,1739943042932,-153.61172358,0.00012867,2]
[353588327,1739943042941,-8797.55160065,0.00013192,2]
[353588329,1739943042952,-269.31220416,0.00013192,2]
[353588335,1739943042995,-110.75008058,0.00013192,2]
[353588337,1739943043005,-171.2819409,0.00013508,2]
[353588343,1739943043057,-452.0580591,0.00013508,2]
[353588345,1739943043066,-161.32976014,0.00013699,2]
[353588588,1739943045816,-6.06023986,0.00013699,2]
[353588589,1739943045826,-9177.61388539,0.00014015,2]
[353588590,1739943045837,-3918.0,0.00014796,2]
[353588591,1739943045847,-1274.0,0.00014796,2]
[353588592,1739943045857,-309.151,0.00014796,2]
[353588593,1739943045866,-150.0,0.00014796,2]
[353588594,1739943045877,-1009.0,0.00014796,2]
[353588595,1739943045894,-73359.8640696,0.000148,2]
[353588596,1739943045904,-9177.61388539,0.00014838,2]
[353588597,1739943045913,-276.04,0.00014974,2]
[353588598,1739943045923,-3091.05,0.00015335,2]
[353588599,1739943045932,-200.0,0.00015362,2]
[353588600,1739943045943,-173.84,0.00015377,2]
[353588601,1739943045952,-1000.0,0.00015388,2]
[353588602,1739943045961,-250.0,0.0001546,2]
[353588603,1739943045972,-440.22,0.00015541,2]
[353588604,1739943045981,-775.98,0.00015541,2]
[353588605,1739943045991,-775.98,0.00015541,2]
[353588606,1739943046000,-440.22,0.00015541,2]
[353588607,1739943046010,-739.33,0.00015541,2]
[353588608,1739943046019,-440.22,0.00015541,2]
[353588609,1739943046028,-440.22,0.00015541,2]
[353588610,1739943046038,-440.22,0.00015641,2]
[353588611,1739943046047,-775.98,0.00015641,2]
[353588612,1739943046056,-9177.61388539,0.00015661,2]
[353588613,1739943046065,-775.98,0.00015741,2]
[353588614,1739943046075,-623.34,0.00015772,2]
[353588615,1739943046085,-153.61172358,0.00015833,2]
[353588616,1739943046096,-986.97,0.0001589,2]
[353588617,1739943046105,-986.97,0.0001589,2]
[353588618,1739943046114,-150.0,0.0001589,2]
[353588619,1739943046125,-150.0,0.0001589,2]
[353588620,1739943046138,-986.97,0.0001589,2]
[353588621,1739943046147,-150.0,0.0001589,2]
[353588622,1739943046157,-24886.50424624,0.00016,2]
[353588623,1739943046167,-166.24,0.00016007,2]
[353588624,1739943046176,-150.0,0.00016008,2]
[353588625,1739943046186,-509.15,0.00016009,2]
[353588626,1739943046198,-884.6519037,0.00016109,2]
[353588627,1739943046207,-150.0,0.000162,2]
[353588628,1739943046217,-500.0,0.00016207,2]
[353588629,1739943046226,-500.0,0.00016257,2]
[353588630,1739943046235,-2000.0,0.00016257,2]
[353588631,1739943046245,-500.0,0.00016257,2]
[353588632,1739943046255,-500.0,0.00016257,2]
[353588633,1739943046264,-200.0,0.00016257,2]
[353588634,1739943046275,-1243.68911,0.0001627,2]
[353588635,1739943046284,-1589.78,0.000163,2]
[353588636,1739943046294,-500.0,0.00016306,2]
[353588637,1739943046303,-222.5747,0.00016328,2]
[353588638,1739943046312,-1000.0,0.00016328,2]
[353588639,1739943046322,-5350.1794,0.00016328,2]
[353588640,1739943046332,-2986.103,0.00016337,2]
[353588641,1739943046342,-176.198,0.00016337,2]
[353588642,1739943046351,-655.38412254,0.00016338,2]
[353588643,1739943046360,-165.18602236,0.00016338,2]
[353588644,1739943046370,-5000.0,0.00016338,2]
[353588645,1739943046379,-150.92394185,0.0001639,2]
[353588646,1739943046389,-440.22,0.000164,2]
[353588647,1739943046398,-84544.68552513,0.000164,3]
[353588656,1739943047763,157.26,8.767e-05,2]
[353588674,1739944160338,163.17,8.767e-05,2]
[353588677,1739944170525,841.4,0.00020274,120]
[353588679,1739944231698,-150.0,0.00011335,2]
[353588680,1739944231708,-150.0,0.00012209,2]
[353588681,1739944231718,-500.0,0.00012209,2]
[353588682,1739944231727,-150.0,0.00012209,2]
[353588683,1739944231737,-550.0,0.00013,2]
[353588684,1739944231747,-608.6,0.00013455,2]
[353588685,1739944231756,-181.14023265,0.00013599,2]
[353588686,1739944231766,-167.01,0.00013699,2]
[353588687,1739944231776,-182.890396,0.00014911,2]
[353588688,1739944231785,-150.0,0.00014986,2]
[353588689,1739944231794,-8122.39440467,0.00014998,2]
[353588690,1739944231806,-1016.00119555,0.00014998,2]
[353588691,1739944231839,-5517.65429978,0.00014998,2]
[353588692,1739944231848,-600.0,0.00015,2]
[353588693,1739944231858,-3394.0,0.00015,2]
[353588694,1739944231868,-150.0,0.00015068,2]
[353588695,1739944231877,-300.0,0.00015097,2]
[353588696,1739944231886,-26.95414755,0.00015098,2]
[353588697,1739944231930,-1999.04585245,0.00015098,2]
[353588698,1739944231940,-1274.0,0.00015098,2]
[353588699,1739944231949,-569.0,0.00015098,2]
[353588700,1739944231958,-638.0,0.00015098,2]
[353588701,1739944231968,-528.392,0.00015098,2]
[353588702,1739944231977,-898.533,0.00015098,2]
[353588703,1739944231986,-150.0,0.00015098,2]
[353588704,1739944231996,-150.0,0.00015098,2]
[353588705,1739944232004,-708.13999684,0.0001519,2]
[353588707,1739944237635,-150.0,0.00015098,2]
[353588708,1739944237645,-3918.0,0.00015098,2]
[353588709,1739944237656,-291.86000316,0.0001519,2]
[353588710,1739944237666,-276.04,0.00015196,2]
[353588711,1739944237676,-170.51,0.00015255,2]
[353588712,1739944237686,-440.22,0.00015441,2]
[353588713,1739944237697,-954.31,0.00015446,2]
[353588714,1739944237710,-163.17,0.00015516,2]
[353588715,1739944237720,-150.0,0.00015678,2]
[353588716,1739944237730,-877.41,0.00015678,2]
[353588717,1739944237739,-608.6,0.00015719,2]
[353588718,1739944237749,-150.0,0.00015778,2]
[353588719,1739944237759,-200.0,0.000158,5]
[353588720,1739944237769,-500.0,0.000159,5]
[353588721,1739944237779,-170.41129124,0.000161,2]
[353588722,1739944237791,-636.50098273,0.000161,2]
[353588723,1739944237801,-589.7679358,0.00016109,2]
[353588724,1739944237811,-351.0,0.000162,13]
[353588725,1739944237821,-175.0,0.0001623,2]
[353588726,1739944237830,-2000.0,0.000163,2]
[353588727,1739944237840,-4761.7817,0.000163,2]
[353588728,1739944237849,-1000.0,0.000163,2]
[353588729,1739944237859,-2331.3517,0.000163,2]
[353588730,1739944237870,-153.61172358,0.000163,2]
[353588731,1739944237880,-357.4391,0.000163,2]
[353588732,1739944237891,-6386.32349132,0.000163,2]
[353588733,1739944237902,-9114.4406,0.000163,2]
[353588734,1739944237912,-11980.97963295,0.000163,2]
[353588735,1739944237922,-150.36457156,0.000163,2]
[353588736,1739944237932,-500.0,0.00016307,2]
[353588737,1739944237941,-2000.0,0.00016307,2]
[353588739,1739944237950,-500.0,0.00016307,2]
[353588741,1739944237960,-200.0,0.00016307,2]
[353588743,1739944237970,-359.92738535,0.00016316,2]
[353588744,1739944237979,-315.6389278,0.00016335,2]
[353588745,1739944237990,-630.06210333,0.00016338,2]
[353588746,1739944238000,-165.18602236,0.00016338,2]
[353588747,1739944238010,-5000.0,0.00016338,2]
[353588748,1739944238019,-76929.26737812,0.000164,3]
[353588749,1739944238031,-4941.09052972,0.000164,3]
[353588750,1739944238044,-231245.42758453,0.000164,3]
[353588751,1739944238054,-1036.40759,0.000164,2]
[353588752,1739944238064,-151.0,0.00016418,2]
[353588753,1739944238074,-446.2272505,0.00016427,2]
[353588754,1739944238084,-871.0637737,0.00016427,2]
[353588755,1739944238094,-469.8100712,0.00016427,2]
[353588757,1739944238104,-1129.1441408,0.00016427,2]
[353588758,1739944238114,-1194.6290783,0.00016427,2]
[353588759,1739944238123,-2318.5888252,0.00016427,2]
[353588760,1739944238134,-165.28565771,0.00016428,2]
[353588761,1739944238143,-61396.18547715,0.00016428,2]
[353588762,1739944238599,-783.72284481,0.00016428,2]
[353588763,1739944238614,-30989.3997722,0.00016428,2]
[353588764,1739944238628,-11939.882424,0.00016428,2]
[353588765,1739944238699,-9021.71629543,0.00016428,2]
[353588766,1739944238710,-999.0,0.00016437,2]
[353588767,1739944238720,-210.26030749,0.00016438,3]
[353588768,1739944238730,-1265.0,0.00016438,2]
[353588769,1739944238740,-186.71015,0.00016438,2]
[353588770,1739944238750,-219.343312,0.00016438,2]
[353588771,1739944238760,-163.855908,0.00016438,2]
[353588772,1739944238769,-156.326465,0.00016438,2]
[353588773,1739944238779,-274.874151,0.00016438,2]
[353588774,1739944238789,-151.0,0.00016438,2]
[353588775,1739944238798,-151.0,0.00016438,2]
[353588776,1739944238808,-156.562667,0.00016438,2]
[353588777,1739944238818,-151.0,0.00016438,2]
[353588778,1739944238828,-151.0,0.00016438,2]
[353588779,1739944238837,-241.347513,0.00016438,2]
[353588780,1739944238845,-151.0,0.00016438,2]
[353588781,1739944238855,-151.0,0.00016438,2]
[353588782,1739944238863,-151.0,0.00016438,2]
[353588783,1739944238872,-151.0,0.00016438,2]
[353588784,1739944238881,-151.0,0.00016438,2]
[353588785,1739944238890,-506.41138157,0.00016438,2]
[353588786,1739944238899,-507.96060743,0.00016438,2]
[353588787,1739944238908,-521.66994757,0.00016438,2]
[353588788,1739944238917,-500.0,0.00016438,2]
[353588789,1739944238926,-500.0,0.00016438,2]
[353588790,1739944238935,-473.48007413,0.00016438,2]
[353588791,1739944238944,-151.0,0.00016438,2]
[353588792,1739944238954,-151.0,0.00016438,2]
[353588793,1739944238964,-205.267513,0.00016438,2]
[353588794,1739944238973,-205.267513,0.00016438,2]
[353588795,1739944238983,-205.267513,0.00016438,2]
[353588796,1739944238991,-205.267513,0.00016438,2]
[353588797,1739944239001,-205.267513,0.00016438,2]
[353588798,1739944239010,-205.267513,0.00016438,2]
[353588799,1739944239018,-500.92,0.00016438,2]
[353588800,1739944239027,-500.0,0.00016438,2]
[353588801,1739944239036,-500.0,0.00016438,2]
[353588802,1739944239045,-500.0,0.00016438,2]
[353588803,1739944239054,-500.0,0.00016438,2]
[353588804,1739944239062,-500.0,0.00016438,2]
[353588805,1739944239071,-3584.44,0.00016438,2]
[353588806,1739944239080,-500.0,0.00016438,2]
[353588807,1739944239089,-500.0,0.00016438,2]
[353588808,1739944239098,-503.47917641,0.00016438,2]
[353588809,1739944239107,-500.0,0.00016438,2]
[353588810,1739944239116,-151.0,0.00016438,2]
[353588811,1739944239124,-151.0,0.00016438,2]
[353588812,1739944239133,-151.0,0.00016438,2]
[353588813,1739944239142,-501.23144487,0.00016438,2]
[353588814,1739944239151,-151.0,0.00016438,2]
[353588815,1739944239160,-244.460273,0.00016438,2]
[353588816,1739944239169,-500.0,0.00016438,2]
[353588817,1739944239178,-500.0,0.00016438,2]
[353588818,1739944239187,-500.0,0.00016438,2]
[353588819,1739944239196,-623.54315701,0.00016438,2]
[353588820,1739944239205,-500.0,0.00016438,2]
[353588821,1739944239214,-500.0,0.00016438,2]
[353588822,1739944239223,-500.0,0.00016438,2]
[353588823,1739944239233,-390.99385204,0.00016438,2]
[353588824,1739944239264,-457.41614796,0.00016438,2]
[353588825,1739944239274,-500.0,0.00016438,2]
[353588826,1739944239283,-46.23225172,0.00016438,2]
[353588827,1739944239299,-453.76774828,0.00016438,2]
[353588828,1739944239308,-500.0,0.00016438,2]
[353588829,1739944239317,-500.0,0.00016438,2]
[353588830,1739944239326,-500.0,0.00016438,2]
[353588831,1739944239335,-151.0,0.00016438,2]
[353588832,1739944239344,-704.77,0.00016438,2]
[353588833,1739944239353,-151.16879,0.00016438,2]
[353588834,1739944239362,-689.44,0.00016438,2]
[353588835,1739944239371,-500.0,0.00016438,2]
[353588836,1739944239380,-500.0,0.00016438,2]
[353588837,1739944239390,-500.0,0.00016438,2]
[353588838,1739944239399,-500.0,0.00016438,2]
[353588839,1739944239408,-500.0,0.00016438,2]
[353588840,1739944239416,-500.0,0.00016438,2]
[353588841,1739944239425,-500.0,0.00016438,2]
[353588842,1739944239434,-500.0,0.00016438,2]
[353588843,1739944239443,-500.0,0.00016438,2]
[353588844,1739944239452,-501.82869406,0.00016438,2]
[353588845,1739944239461,-508.66089045,0.00016438,2]
[353588846,1739944239470,-500.0,0.00016438,2]
[353588847,1739944239479,-500.0,0.00016438,2]
[353588848,1739944239488,-500.0,0.00016438,2]
[353588849,1739944239496,-500.0,0.00016438,2]
[353588850,1739944239506,-500.0,0.00016438,2]
[353588851,1739944239515,-500.0,0.00016438,2]
[353588852,1739944239524,-500.0,0.00016438,2]
[353588853,1739944239534,-500.0,0.00016438,2]
[353588855,1739944239543,-500.0,0.00016438,2]
[353588856,1739944239552,-500.0,0.00016438,2]
[353588857,1739944239562,-500.0,0.00016438,2]
[353588859,1739944239571,-500.0,0.00016438,2]
[353588861,1739944239580,-500.0,0.00016438,2]
[353588862,1739944239589,-500.0,0.00016438,2]
[353588863,1739944239598,-252.91162281,0.00016438,2]
[353588864,1739944239608,-688.47,0.00016438,2]
[353588865,1739944239619,-500.0,0.00016438,2]
[353588866,1739944239628,-500.0,0.00016438,2]
[353588867,1739944239636,-500.0,0.00016438,2]
[353588868,1739944239645,-500.0,0.00016438,2]
[353588869,1739944239653,-762.21,0.00016438,2]
[353588870,1739944239663,-500.0,0.00016438,2]
[353588871,1739944239672,-500.0,0.00016438,2]
[353588872,1739944239681,-500.0,0.00016438,2]
[353588873,1739944239691,-500.0,0.00016438,2]
[353588874,1739944239701,-500.0,0.00016438,2]
[353588875,1739944239711,-500.0,0.00016438,2]
[353588876,1739944239721,-576.96145412,0.00016438,2]
[353588877,1739944239736,-128.46854588,0.00016438,2]
[353588878,1739944239746,-500.0,0.00016438,2]